[Event "Titled Tuesday Blitz July 25 Late 2023"]
[White "Cooklev, Steven"]
[Black "Przybylski, Wojciech"]
[WhiteFideId "2050552"]
[BlackFideId "1117599"]
[WhiteElo "2378"]
[BlackElo "2535"]
[Result "0-1"]
[Round "5"]
[TimeControl "180+2"]
[Date "2023.07.25"]
[WhiteClock "0:00:02"]
[BlackClock "0:00:09"]
[Board "94"]

1. e4 {[%clk 0:03:00]}  c5 {[%clk 0:02:58]} 2. Nf3 {[%clk 0:03:01]}  d6 {[%clk 0:02:57]} 3. d4 {[%clk 0:03:01]}  cxd4 {[%clk 0:02:58]} 4. Nxd4 {[%clk 0:03:02]}  Nf6 {[%clk 0:02:58]} 5. Nc3 {[%clk 0:03:02]}  a6 {[%clk 0:02:58]} 6. Be3 {[%clk 0:03:03]}  e6 {[%clk 0:02:58]} 7. Be2 {[%clk 0:03:02]}  Be7 {[%clk 0:02:57]} 8. O-O {[%clk 0:03:02]}  O-O {[%clk 0:02:57]} 9. a4 {[%clk 0:03:02]}  Nc6 {[%clk 0:02:55]} 10. f4 {[%clk 0:03:02]}  Bd7 {[%clk 0:02:55]} 11. Kh1 {[%clk 0:02:56]}  Nxd4 {[%clk 0:02:53]} 12. Qxd4 {[%clk 0:02:55]}  Bc6 {[%clk 0:02:53]} 13. a5 {[%clk 0:01:34]}  Nd7 {[%clk 0:02:51]} 14. Qd3 {[%clk 0:01:30]}  Qc7 {[%clk 0:02:45]} 15. Bf3 {[%clk 0:01:27]}  Rfd8 {[%clk 0:02:34]} 16. Na4 {[%clk 0:01:23]}  Nc5 {[%clk 0:02:21]} 17. Nxc5 {[%clk 0:01:20]}  dxc5 {[%clk 0:02:21]} 18. Qc3 {[%clk 0:01:21]}  Bb5 {[%clk 0:02:13]} 19. Rfd1 {[%clk 0:01:20]}  h6 {[%clk 0:02:07]} 20. b4 {[%clk 0:01:12]}  e5 {[%clk 0:01:45]} 21. fxe5 {[%clk 0:01:06]}  c4 {[%clk 0:01:39]} 22. Rd5 {[%clk 0:00:56]}  Re8 {[%clk 0:01:33]} 23. Bb6 {[%clk 0:00:55]}  Qc6 {[%clk 0:01:31]} 24. Rad1 {[%clk 0:00:54]}  Qg6 {[%clk 0:01:25]} 25. h3 {[%clk 0:00:25]}  h5 {[%clk 0:01:24]} 26. e6 {[%clk 0:00:25]}  fxe6 {[%clk 0:00:55]} 27. Bxh5 {[%clk 0:00:25]}  Qxe4 {[%clk 0:00:36]} 28. Bxe8 {[%clk 0:00:24]}  exd5 {[%clk 0:00:35]} 29. Bxb5 {[%clk 0:00:22]}  axb5 {[%clk 0:00:34]} 30. Re1 {[%clk 0:00:22]}  Bf6 {[%clk 0:00:27]} 31. Qd2 {[%clk 0:00:17]}  Qf5 {[%clk 0:00:26]} 32. Rd1 {[%clk 0:00:15]}  Re8 {[%clk 0:00:22]} 33. Qxd5+ {[%clk 0:00:15]}  Qxd5 {[%clk 0:00:20]} 34. Rxd5 {[%clk 0:00:16]}  Re2 {[%clk 0:00:10]} 35. Rxb5 {[%clk 0:00:16]}  Rxc2 {[%clk 0:00:10]} 36. Bc7 {[%clk 0:00:16]}  c3 {[%clk 0:00:10]} 37. Rxb7 {[%clk 0:00:16]}  Ra2 {[%clk 0:00:10]} 38. b5 {[%clk 0:00:15]}  c2 {[%clk 0:00:11]} 39. Bf4 {[%clk 0:00:14]}  Rxa5 {[%clk 0:00:11]} 40. b6 {[%clk 0:00:13]}  Ra4 {[%clk 0:00:11]} 41. Bd2 {[%clk 0:00:11]}  Rd4 {[%clk 0:00:11]} 42. Be3 {[%clk 0:00:10]}  Rd3 {[%clk 0:00:10]} 43. Bf4 {[%clk 0:00:10]}  Rd4 {[%clk 0:00:10]} 44. Be3 {[%clk 0:00:06]}  Rd1+ {[%clk 0:00:09]} 45. Kh2 {[%clk 0:00:05]}  Re1 {[%clk 0:00:09]} 46. Bd2 {[%clk 0:00:05]}  Rd1 {[%clk 0:00:08]} 47. Be3 {[%clk 0:00:03]}  Be5+ {[%clk 0:00:08]} 48. g3 {[%clk 0:00:03]}  Re1 {[%clk 0:00:09]} 49. Bd2 {[%clk 0:00:02]}  Re2+ {[%clk 0:00:09]} 50. Kg1 {[%clk 0:00:03]}  Rxd2 {[%clk 0:00:09]} 51. Re7 {[%clk 0:00:02]}  c1=Q# {[%clk 0:00:09]} 0-1


[Site "https://www.chess.com"]

[Event "Titled Tuesday Blitz July 25 Late 2023"]
[White "Garakov, Mikhael"]
[Black "Yu, Jennifer"]
[WhiteFideId "4169034"]
[BlackFideId "2078341"]
[WhiteElo "2527"]
[BlackElo "2359"]
[Result "0-1"]
[Round "5"]
[TimeControl "180+2"]
[Date "2023.07.25"]
[WhiteClock "0:00:06"]
[BlackClock "0:00:05"]
[Board "97"]

1. e4 {[%clk 0:02:48]}  e5 {[%clk 0:02:58]} 2. Nf3 {[%clk 0:02:47]}  Nc6 {[%clk 0:02:57]} 3. Bb5 {[%clk 0:02:47]}  a6 {[%clk 0:02:56]} 4. Bxc6 {[%clk 0:02:47]}  dxc6 {[%clk 0:02:54]} 5. O-O {[%clk 0:02:46]}  Bd6 {[%clk 0:02:52]} 6. d4 {[%clk 0:02:39]}  exd4 {[%clk 0:02:52]} 7. Qxd4 {[%clk 0:02:38]}  f6 {[%clk 0:02:52]} 8. h3 {[%clk 0:02:26]}  Ne7 {[%clk 0:02:49]} 9. Rd1 {[%clk 0:02:26]}  Ng6 {[%clk 0:02:43]} 10. Na3 {[%clk 0:02:15]}  Qe7 {[%clk 0:02:18]} 11. Nc4 {[%clk 0:02:12]}  Bc5 {[%clk 0:02:17]} 12. Qd3 {[%clk 0:01:59]}  O-O {[%clk 0:02:15]} 13. Be3 {[%clk 0:01:55]}  Be6 {[%clk 0:02:03]} 14. Na5 {[%clk 0:01:42]}  Rab8 {[%clk 0:01:37]} 15. Nb3 {[%clk 0:01:38]}  Bd6 {[%clk 0:01:34]} 16. Nbd4 {[%clk 0:01:20]}  Rbd8 {[%clk 0:01:16]} 17. Nxe6 {[%clk 0:01:19]}  Qxe6 {[%clk 0:01:17]} 18. Nd4 {[%clk 0:01:13]}  Qe5 {[%clk 0:01:04]} 19. Qb3+ {[%clk 0:01:06]}  Kh8 {[%clk 0:01:03]} 20. Nf3 {[%clk 0:00:40]}  Qxe4 {[%clk 0:01:00]} 21. Rd4 {[%clk 0:00:36]}  Qf5 {[%clk 0:00:52]} 22. Qxb7 {[%clk 0:00:35]}  Ne5 {[%clk 0:00:41]} 23. Nxe5 {[%clk 0:00:33]}  Qxe5 {[%clk 0:00:42]} 24. g3 {[%clk 0:00:30]}  Rb8 {[%clk 0:00:32]} 25. Qxc6 {[%clk 0:00:29]}  Rxb2 {[%clk 0:00:31]} 26. Rad1 {[%clk 0:00:28]}  Qf5 {[%clk 0:00:22]} 27. g4 {[%clk 0:00:16]}  Qxc2 {[%clk 0:00:20]} 28. Qxa6 {[%clk 0:00:14]}  Rxa2 {[%clk 0:00:12]} 29. Qc4 {[%clk 0:00:13]}  Qxc4 {[%clk 0:00:12]} 30. Rxc4 {[%clk 0:00:14]}  Re8 {[%clk 0:00:12]} 31. Bc5 {[%clk 0:00:13]}  Be5 {[%clk 0:00:10]} 32. f4 {[%clk 0:00:13]}  Bd6 {[%clk 0:00:08]} 33. Bxd6 {[%clk 0:00:13]}  cxd6 {[%clk 0:00:09]} 34. Rc6 {[%clk 0:00:13]}  h5 {[%clk 0:00:07]} 35. Rcxd6 {[%clk 0:00:11]}  Ree2 {[%clk 0:00:05]} 36. R6d5 {[%clk 0:00:11]}  Rg2+ {[%clk 0:00:04]} 37. Kf1 {[%clk 0:00:11]}  hxg4 {[%clk 0:00:03]} 38. hxg4 {[%clk 0:00:12]}  Rxg4 {[%clk 0:00:03]} 39. R5d4 {[%clk 0:00:12]}  Kh7 {[%clk 0:00:03]} 40. f5 {[%clk 0:00:10]}  Rxd4 {[%clk 0:00:02]} 41. Rxd4 {[%clk 0:00:11]}  Kh6 {[%clk 0:00:01]} 42. Rg4 {[%clk 0:00:10]}  Ra5 {[%clk 0:00:02]} 43. Rg6+ {[%clk 0:00:06]}  Kh7 {[%clk 0:00:02]} 44. Rg3 {[%clk 0:00:06]}  Rxf5+ {[%clk 0:00:02]} 45. Ke2 {[%clk 0:00:07]}  g5 {[%clk 0:00:03]} 46. Ke3 {[%clk 0:00:08]}  Kg6 {[%clk 0:00:04]} 47. Ke4 {[%clk 0:00:08]}  Rf4+ {[%clk 0:00:04]} 48. Ke3 {[%clk 0:00:09]}  f5 {[%clk 0:00:05]} 49. Rg1 {[%clk 0:00:09]}  Re4+ {[%clk 0:00:05]} 50. Kf3 {[%clk 0:00:09]}  g4+ {[%clk 0:00:06]} 51. Kg3 {[%clk 0:00:09]}  Kg5 {[%clk 0:00:07]} 52. Ra1 {[%clk 0:00:09]}  Re3+ {[%clk 0:00:07]} 53. Kf2 {[%clk 0:00:09]}  f4 {[%clk 0:00:07]} 54. Ra8 {[%clk 0:00:10]}  g3+ {[%clk 0:00:07]} 55. Kg2 {[%clk 0:00:10]}  Re2+ {[%clk 0:00:08]} 56. Kf3 {[%clk 0:00:09]}  Rf2+ {[%clk 0:00:08]} 57. Ke4 {[%clk 0:00:10]}  g2 {[%clk 0:00:07]} 58. Rg8+ {[%clk 0:00:10]}  Kf6 {[%clk 0:00:05]} 59. Kd3 {[%clk 0:00:09]}  f3 {[%clk 0:00:05]} 60. Ke3 {[%clk 0:00:10]}  Rf1 {[%clk 0:00:05]} 61. Rf8+ {[%clk 0:00:10]}  Ke7 {[%clk 0:00:05]} 62. Rh8 {[%clk 0:00:06]}  g1=Q+ {[%clk 0:00:05]} 0-1


[Site "https://www.chess.com"]

[Event "Titled Tuesday Blitz July 25 Late 2023"]
[White "Korpics, Zsolt"]
[Black "Santos Flores, Alberto"]
[WhiteFideId "705241"]
[BlackFideId "3601234"]
[WhiteElo "2343"]
[BlackElo "2525"]
[Result "0-1"]
[Round "5"]
[TimeControl "180+2"]
[Date "2023.07.25"]
[WhiteClock "0:00:00"]
[BlackClock "0:00:47"]
[Board "100"]

1. e4 {[%clk 0:03:00]}  e6 {[%clk 0:02:58]} 2. d4 {[%clk 0:02:58]}  d5 {[%clk 0:02:51]} 3. Nc3 {[%clk 0:02:57]}  Nf6 {[%clk 0:02:51]} 4. Bg5 {[%clk 0:02:55]}  Bb4 {[%clk 0:02:51]} 5. e5 {[%clk 0:02:55]}  h6 {[%clk 0:02:50]} 6. Bc1 {[%clk 0:02:55]}  Ne4 {[%clk 0:02:49]} 7. Qg4 {[%clk 0:02:55]}  Kf8 {[%clk 0:02:46]} 8. Ne2 {[%clk 0:02:55]}  c5 {[%clk 0:02:26]} 9. a3 {[%clk 0:02:52]}  Nxc3 {[%clk 0:02:19]} 10. bxc3 {[%clk 0:02:51]}  Ba5 {[%clk 0:02:16]} 11. Bd2 {[%clk 0:01:42]}  Nc6 {[%clk 0:02:13]} 12. Rd1 {[%clk 0:01:27]}  cxd4 {[%clk 0:02:09]} 13. cxd4 {[%clk 0:01:28]}  Bxd2+ {[%clk 0:02:08]} 14. Rxd2 {[%clk 0:01:29]}  Qa5 {[%clk 0:02:07]} 15. Qf3 {[%clk 0:01:24]}  b6 {[%clk 0:01:52]} 16. Qc3 {[%clk 0:01:23]}  Bd7 {[%clk 0:01:37]} 17. g3 {[%clk 0:00:53]}  Rc8 {[%clk 0:01:36]} 18. Qxa5 {[%clk 0:00:51]}  Nxa5 {[%clk 0:01:36]} 19. Bg2 {[%clk 0:00:32]}  Bb5 {[%clk 0:01:31]} 20. f4 {[%clk 0:00:20]}  Ke7 {[%clk 0:01:27]} 21. f5 {[%clk 0:00:20]}  Bxe2 {[%clk 0:01:25]} 22. Kxe2 {[%clk 0:00:19]}  Rc3 {[%clk 0:01:22]} 23. Ra1 {[%clk 0:00:13]}  Nc4 {[%clk 0:01:19]} 24. Rd3 {[%clk 0:00:07]}  Rxc2+ {[%clk 0:01:19]} 25. Kf3 {[%clk 0:00:08]}  exf5 {[%clk 0:01:08]} 26. Bh3 {[%clk 0:00:08]}  Ke6 {[%clk 0:01:06]} 27. Kf4 {[%clk 0:00:08]}  g5+ {[%clk 0:01:04]} 28. Kf3 {[%clk 0:00:08]}  g4+ {[%clk 0:01:04]} 29. Bxg4 {[%clk 0:00:08]}  fxg4+ {[%clk 0:01:05]} 30. Kxg4 {[%clk 0:00:09]}  Rxh2 {[%clk 0:01:03]} 31. Rf1 {[%clk 0:00:10]}  Rg8+ {[%clk 0:00:59]} 32. Kf3 {[%clk 0:00:09]}  Nd2+ {[%clk 0:00:59]} 33. Rxd2 {[%clk 0:00:06]}  Rxd2 {[%clk 0:00:57]} 34. Rc1 {[%clk 0:00:07]}  Rxd4 {[%clk 0:00:56]} 35. Rc6+ {[%clk 0:00:06]}  Kxe5 {[%clk 0:00:56]} 36. g4 {[%clk 0:00:06]}  Rdxg4 {[%clk 0:00:54]} 37. a4 {[%clk 0:00:06]}  Rxa4 {[%clk 0:00:53]} 38. Rxh6 {[%clk 0:00:07]}  f5 {[%clk 0:00:51]} 39. Kf2 {[%clk 0:00:06]}  Kf4 {[%clk 0:00:49]} 40. Rh4+ {[%clk 0:00:05]}  Rg4 {[%clk 0:00:49]} 41. Rh3 {[%clk 0:00:04]}  Ra2+ {[%clk 0:00:49]} 42. Kf1 {[%clk 0:00:04]}  Rg3 {[%clk 0:00:47]} 43. Rh4+ {[%clk 0:00:00]}  Kf3 {[%clk 0:00:47]} 0-1


[Site "https://www.chess.com"]

[Event "Titled Tuesday Blitz July 25 Late 2023"]
[White "Barwinska, Ewa"]
[Black "Toniutti, Ezio"]
[WhiteFideId "21833761"]
[BlackFideId "113034"]
[WhiteElo "2311"]
[BlackElo "2510"]
[Result "0-1"]
[Round "5"]
[TimeControl "180+2"]
[Date "2023.07.25"]
[WhiteClock "0:00:00"]
[BlackClock "0:00:49"]
[Board "104"]

1. e4 {[%clk 0:02:35]}  e5 {[%clk 0:02:59]} 2. Nf3 {[%clk 0:02:36]}  Nc6 {[%clk 0:02:59]} 3. Bc4 {[%clk 0:02:36]}  Nf6 {[%clk 0:02:59]} 4. d3 {[%clk 0:02:31]}  Be7 {[%clk 0:02:59]} 5. O-O {[%clk 0:02:29]}  O-O {[%clk 0:02:59]} 6. c3 {[%clk 0:02:30]}  d6 {[%clk 0:03:00]} 7. Re1 {[%clk 0:02:29]}  Na5 {[%clk 0:02:56]} 8. Bb3 {[%clk 0:02:27]}  Nxb3 {[%clk 0:02:56]} 9. Qxb3 {[%clk 0:02:28]}  Bg4 {[%clk 0:02:46]} 10. Nbd2 {[%clk 0:02:25]}  Qc8 {[%clk 0:02:45]} 11. d4 {[%clk 0:02:22]}  Nd7 {[%clk 0:02:43]} 12. h3 {[%clk 0:02:20]}  Bh5 {[%clk 0:02:42]} 13. a4 {[%clk 0:02:10]}  Bf6 {[%clk 0:02:41]} 14. Qc2 {[%clk 0:01:38]}  Re8 {[%clk 0:02:37]} 15. Qd3 {[%clk 0:01:33]}  Nf8 {[%clk 0:02:33]} 16. Nb3 {[%clk 0:01:12]}  Ne6 {[%clk 0:02:23]} 17. d5 {[%clk 0:01:09]}  Nf8 {[%clk 0:02:11]} 18. Nbd2 {[%clk 0:00:43]}  Nd7 {[%clk 0:02:07]} 19. b4 {[%clk 0:00:40]}  a5 {[%clk 0:02:05]} 20. Nf1 {[%clk 0:00:36]}  Qd8 {[%clk 0:01:58]} 21. Ng3 {[%clk 0:00:36]}  Bg6 {[%clk 0:01:58]} 22. Bd2 {[%clk 0:00:32]}  b6 {[%clk 0:01:53]} 23. Nh2 {[%clk 0:00:31]}  Rf8 {[%clk 0:01:49]} 24. Ng4 {[%clk 0:00:30]}  Bg5 {[%clk 0:01:49]} 25. Bxg5 {[%clk 0:00:29]}  Qxg5 {[%clk 0:01:48]} 26. Qc4 {[%clk 0:00:25]}  Rfc8 {[%clk 0:01:33]} 27. Qc6 {[%clk 0:00:25]}  Nf8 {[%clk 0:01:20]} 28. Rab1 {[%clk 0:00:14]}  h5 {[%clk 0:01:19]} 29. Ne3 {[%clk 0:00:14]}  Nh7 {[%clk 0:01:15]} 30. Nef5 {[%clk 0:00:12]}  h4 {[%clk 0:01:13]} 31. Nf1 {[%clk 0:00:05]}  Bxf5 {[%clk 0:01:13]} 32. exf5 {[%clk 0:00:05]}  Qxf5 {[%clk 0:01:14]} 33. Ne3 {[%clk 0:00:05]}  Qg5 {[%clk 0:01:09]} 34. bxa5 {[%clk 0:00:06]}  Rxa5 {[%clk 0:01:08]} 35. Rxb6 {[%clk 0:00:06]}  Rc5 {[%clk 0:01:05]} 36. Qd7 {[%clk 0:00:03]}  cxb6 {[%clk 0:01:05]} 37. Nf5 {[%clk 0:00:04]}  Qd8 {[%clk 0:00:50]} 38. Ne7+ {[%clk 0:00:00]}  Kh8 {[%clk 0:00:49]} 0-1


[Site "https://www.chess.com"]

[Event "Titled Tuesday Blitz July 25 Late 2023"]
[White "O`Gorman, Tom"]
[Black "Santos, Rafael Ventura Dos"]
[WhiteFideId "2508249"]
[BlackFideId "2122227"]
[WhiteElo "2509"]
[BlackElo "2308"]
[Result "1/2-1/2"]
[Round "5"]
[TimeControl "180+2"]
[Date "2023.07.25"]
[WhiteClock "0:00:23"]
[BlackClock "0:00:16"]
[Board "105"]

1. c4 {[%clk 0:02:59]}  e5 {[%clk 0:02:59]} 2. Nc3 {[%clk 0:02:56]}  Nf6 {[%clk 0:03:00]} 3. g3 {[%clk 0:02:52]}  c6 {[%clk 0:03:00]} 4. d4 {[%clk 0:02:50]}  e4 {[%clk 0:02:59]} 5. Bg2 {[%clk 0:02:47]}  d5 {[%clk 0:02:56]} 6. Bg5 {[%clk 0:02:48]}  Nbd7 {[%clk 0:02:55]} 7. e3 {[%clk 0:02:43]}  h6 {[%clk 0:02:52]} 8. Bxf6 {[%clk 0:02:42]}  Nxf6 {[%clk 0:02:52]} 9. cxd5 {[%clk 0:02:41]}  cxd5 {[%clk 0:02:53]} 10. f3 {[%clk 0:02:40]}  exf3 {[%clk 0:02:52]} 11. Nxf3 {[%clk 0:02:41]}  Bd6 {[%clk 0:02:49]} 12. O-O {[%clk 0:02:41]}  O-O {[%clk 0:02:49]} 13. Ne5 {[%clk 0:02:40]}  Be6 {[%clk 0:02:44]} 14. Qd3 {[%clk 0:02:37]}  a6 {[%clk 0:02:38]} 15. Rad1 {[%clk 0:02:28]}  Re8 {[%clk 0:02:34]} 16. e4 {[%clk 0:02:22]}  dxe4 {[%clk 0:02:34]} 17. Nxe4 {[%clk 0:02:23]}  Nxe4 {[%clk 0:02:21]} 18. Qxe4 {[%clk 0:02:21]}  Bxe5 {[%clk 0:02:12]} 19. dxe5 {[%clk 0:02:20]}  Qb6+ {[%clk 0:02:11]} 20. Kh1 {[%clk 0:02:21]}  Qxb2 {[%clk 0:02:11]} 21. a4 {[%clk 0:02:14]}  Rab8 {[%clk 0:01:41]} 22. Rb1 {[%clk 0:02:12]}  Qa3 {[%clk 0:01:39]} 23. Rf3 {[%clk 0:02:07]}  Qa2 {[%clk 0:01:36]} 24. Rff1 {[%clk 0:01:53]}  Red8 {[%clk 0:01:35]} 25. Rxb7 {[%clk 0:01:48]}  Rxb7 {[%clk 0:01:20]} 26. Qxb7 {[%clk 0:01:49]}  Rd2 {[%clk 0:01:21]} 27. Qb8+ {[%clk 0:01:10]}  Kh7 {[%clk 0:01:19]} 28. Qb1+ {[%clk 0:01:10]}  Qxb1 {[%clk 0:01:11]} 29. Rxb1 {[%clk 0:01:11]}  Ra2 {[%clk 0:01:00]} 30. Bc6 {[%clk 0:01:10]}  Re2 {[%clk 0:00:56]} 31. Rb6 {[%clk 0:01:06]}  Bc4 {[%clk 0:00:57]} 32. Bb7 {[%clk 0:01:00]}  a5 {[%clk 0:00:49]} 33. Ba6 {[%clk 0:00:51]}  Bxa6 {[%clk 0:00:43]} 34. Rxa6 {[%clk 0:00:52]}  Rxe5 {[%clk 0:00:44]} 35. Kg2 {[%clk 0:00:53]}  g5 {[%clk 0:00:41]} 36. Kf3 {[%clk 0:00:53]}  Kg7 {[%clk 0:00:40]} 37. h4 {[%clk 0:00:51]}  f6 {[%clk 0:00:40]} 38. hxg5 {[%clk 0:00:52]}  hxg5 {[%clk 0:00:40]} 39. Ra8 {[%clk 0:00:41]}  Rc5 {[%clk 0:00:37]} 40. Kg4 {[%clk 0:00:40]}  Kg6 {[%clk 0:00:33]} 41. Rg8+ {[%clk 0:00:39]}  Kf7 {[%clk 0:00:34]} 42. Ra8 {[%clk 0:00:39]}  Rc4+ {[%clk 0:00:33]} 43. Kf5 {[%clk 0:00:36]}  Rc5+ {[%clk 0:00:33]} 44. Ke4 {[%clk 0:00:33]}  Ke6 {[%clk 0:00:24]} 45. Ra6+ {[%clk 0:00:32]}  Ke7 {[%clk 0:00:23]} 46. Kd4 {[%clk 0:00:32]}  Re5 {[%clk 0:00:22]} 47. Rb6 {[%clk 0:00:30]}  Rf5 {[%clk 0:00:15]} 48. Rb3 {[%clk 0:00:25]}  Kd7 {[%clk 0:00:14]} 49. Kc4 {[%clk 0:00:25]}  Kc6 {[%clk 0:00:14]} 50. Re3 {[%clk 0:00:25]}  Rc5+ {[%clk 0:00:14]} 51. Kd4 {[%clk 0:00:24]}  Rd5+ {[%clk 0:00:14]} 52. Kc4 {[%clk 0:00:25]}  Re5 {[%clk 0:00:13]} 53. Rf3 {[%clk 0:00:23]}  Re4+ {[%clk 0:00:14]} 54. Kb3 {[%clk 0:00:23]}  Rb4+ {[%clk 0:00:14]} 55. Ka3 {[%clk 0:00:23]}  Rg4 {[%clk 0:00:13]} 56. Rxf6+ {[%clk 0:00:23]}  Kb7 {[%clk 0:00:13]} 57. Rf3 {[%clk 0:00:23]}  Kb6 {[%clk 0:00:14]} 58. Kb3 {[%clk 0:00:22]}  Kc5 {[%clk 0:00:14]} 59. Rc3+ {[%clk 0:00:20]}  Kb6 {[%clk 0:00:14]} 60. Rd3 {[%clk 0:00:20]}  Kc5 {[%clk 0:00:14]} 61. Re3 {[%clk 0:00:20]}  Rb4+ {[%clk 0:00:14]} 62. Ka3 {[%clk 0:00:20]}  Rg4 {[%clk 0:00:15]} 63. Re5+ {[%clk 0:00:20]}  Kb6 {[%clk 0:00:16]} 64. Re3 {[%clk 0:00:20]}  Kc5 {[%clk 0:00:16]} 65. Rf3 {[%clk 0:00:21]}  Kb6 {[%clk 0:00:16]} 66. Kb3 {[%clk 0:00:22]}  Kc5 {[%clk 0:00:16]} 67. Rc3+ {[%clk 0:00:22]}  Kb6 {[%clk 0:00:16]} 68. Rf3 {[%clk 0:00:23]} 1/2-1/2


[Site "https://www.chess.com"]

[Event "Titled Tuesday Blitz July 25 Late 2023"]
[White "Cardozo Munar, Carlos Eduardo"]
[Black "only_strong_moves"]
[WhiteFideId "4409477"]
[WhiteElo "2260"]
[BlackElo "2502"]
[Result "0-1"]
[Round "5"]
[TimeControl "180+2"]
[Date "2023.07.25"]
[WhiteClock "0:00:00"]
[BlackClock "0:00:12"]
[Board "108"]

1. e4 {[%clk 0:02:53]}  e5 {[%clk 0:02:59]} 2. Nf3 {[%clk 0:02:53]}  Nc6 {[%clk 0:03:00]} 3. Nc3 {[%clk 0:02:54]}  Nf6 {[%clk 0:03:00]} 4. Nxe5 {[%clk 0:02:55]}  Nxe5 {[%clk 0:02:59]} 5. d4 {[%clk 0:02:56]}  Ng6 {[%clk 0:02:58]} 6. e5 {[%clk 0:02:56]}  Bb4 {[%clk 0:02:55]} 7. exf6 {[%clk 0:02:56]}  Qxf6 {[%clk 0:02:56]} 8. Be2 {[%clk 0:02:51]}  O-O {[%clk 0:02:55]} 9. O-O {[%clk 0:02:51]}  c6 {[%clk 0:02:46]} 10. Ne4 {[%clk 0:02:46]}  Qe7 {[%clk 0:02:43]} 11. Bd3 {[%clk 0:02:40]}  d5 {[%clk 0:02:30]} 12. Ng5 {[%clk 0:02:33]}  h6 {[%clk 0:02:29]} 13. Nf3 {[%clk 0:02:12]}  Qf6 {[%clk 0:02:28]} 14. c3 {[%clk 0:02:11]}  Bd6 {[%clk 0:02:28]} 15. h3 {[%clk 0:02:10]}  Nf4 {[%clk 0:02:24]} 16. Bxf4 {[%clk 0:02:03]}  Qxf4 {[%clk 0:02:21]} 17. Re1 {[%clk 0:02:03]}  Be6 {[%clk 0:02:06]} 18. a4 {[%clk 0:01:58]}  Rfe8 {[%clk 0:02:05]} 19. a5 {[%clk 0:01:58]}  a6 {[%clk 0:02:04]} 20. Qc1 {[%clk 0:01:53]}  Qf6 {[%clk 0:02:03]} 21. Ne5 {[%clk 0:01:47]}  Bf5 {[%clk 0:01:46]} 22. Bxf5 {[%clk 0:01:33]}  Qxf5 {[%clk 0:01:47]} 23. Nf3 {[%clk 0:01:33]}  Re4 {[%clk 0:01:45]} 24. Rxe4 {[%clk 0:01:28]}  dxe4 {[%clk 0:01:46]} 25. Qc2 {[%clk 0:01:27]}  Qf4 {[%clk 0:01:43]} 26. Ne5 {[%clk 0:01:22]}  Bxe5 {[%clk 0:01:37]} 27. dxe5 {[%clk 0:01:23]}  Qxe5 {[%clk 0:01:37]} 28. Re1 {[%clk 0:01:22]}  Re8 {[%clk 0:01:32]} 29. b4 {[%clk 0:01:11]}  Re6 {[%clk 0:01:23]} 30. Re3 {[%clk 0:01:11]}  f5 {[%clk 0:01:18]} 31. Qd2 {[%clk 0:01:09]}  f4 {[%clk 0:01:15]} 32. Re1 {[%clk 0:01:07]}  f3 {[%clk 0:01:01]} 33. g3 {[%clk 0:01:06]}  Rd6 {[%clk 0:00:50]} 34. Qe3 {[%clk 0:01:04]}  Re6 {[%clk 0:00:28]} 35. Rd1 {[%clk 0:01:04]}  Kh7 {[%clk 0:00:27]} 36. Rd4 {[%clk 0:01:03]}  Qf5 {[%clk 0:00:26]} 37. Kh2 {[%clk 0:01:01]}  h5 {[%clk 0:00:23]} 38. h4 {[%clk 0:00:58]}  Qe5 {[%clk 0:00:14]} 39. Rd7 {[%clk 0:00:46]}  Qb5 {[%clk 0:00:10]} 40. Qd4 {[%clk 0:00:34]}  Qe5 {[%clk 0:00:07]} 41. Qe3 {[%clk 0:00:33]}  Rg6 {[%clk 0:00:05]} 42. Rxb7 {[%clk 0:00:29]}  Qd5 {[%clk 0:00:06]} 43. Re7 {[%clk 0:00:25]}  Qa2 {[%clk 0:00:03]} 44. Rxe4 {[%clk 0:00:22]}  Rf6 {[%clk 0:00:03]} 45. Qd4 {[%clk 0:00:17]}  Qc2 {[%clk 0:00:03]} 46. Re1 {[%clk 0:00:16]}  Qb2 {[%clk 0:00:02]} 47. Rd1 {[%clk 0:00:16]}  Rd6 {[%clk 0:00:03]} 48. Qe4+ {[%clk 0:00:12]}  Kh8 {[%clk 0:00:02]} 49. Qxf3 {[%clk 0:00:12]}  Rf6 {[%clk 0:00:01]} 50. Qxh5+ {[%clk 0:00:13]}  Kg8 {[%clk 0:00:01]} 51. Rd8+ {[%clk 0:00:12]}  Rf8 {[%clk 0:00:02]} 52. Rxf8+ {[%clk 0:00:11]}  Kxf8 {[%clk 0:00:03]} 53. Qf5+ {[%clk 0:00:11]}  Ke7 {[%clk 0:00:04]} 54. Qe4+ {[%clk 0:00:11]}  Kd7 {[%clk 0:00:04]} 55. Qe3 {[%clk 0:00:12]}  Kd6 {[%clk 0:00:04]} 56. g4 {[%clk 0:00:12]}  Kd5 {[%clk 0:00:04]} 57. g5 {[%clk 0:00:12]}  Kc4 {[%clk 0:00:04]} 58. Qd4+ {[%clk 0:00:13]}  Kb3 {[%clk 0:00:04]} 59. h5 {[%clk 0:00:13]}  Qb1 {[%clk 0:00:05]} 60. h6 {[%clk 0:00:14]}  gxh6 {[%clk 0:00:04]} 61. gxh6 {[%clk 0:00:14]}  Qg6 {[%clk 0:00:05]} 62. Qg7 {[%clk 0:00:15]}  Qh5+ {[%clk 0:00:05]} 63. Kg3 {[%clk 0:00:15]}  Qd1 {[%clk 0:00:04]} 64. h7 {[%clk 0:00:15]}  Qg1+ {[%clk 0:00:04]} 65. Kf3 {[%clk 0:00:15]}  Qxg7 {[%clk 0:00:05]} 66. Ke2 {[%clk 0:00:15]}  Qxh7 {[%clk 0:00:06]} 67. f4 {[%clk 0:00:16]}  Qc2+ {[%clk 0:00:06]} 68. Ke3 {[%clk 0:00:16]}  Qxc3+ {[%clk 0:00:07]} 69. Ke4 {[%clk 0:00:17]}  Qxb4+ {[%clk 0:00:08]} 70. Ke5 {[%clk 0:00:18]}  Qxa5+ {[%clk 0:00:09]} 71. Ke6 {[%clk 0:00:18]}  Qd5+ {[%clk 0:00:09]} 72. Kf6 {[%clk 0:00:18]}  a5 {[%clk 0:00:10]} 73. f5 {[%clk 0:00:19]}  a4 {[%clk 0:00:11]} 74. Kg5 {[%clk 0:00:00]}  a3 {[%clk 0:00:12]} 0-1


[Site "https://www.chess.com"]